[Event "Blixt-SM 2025"]
[Site "Norrköping, Sweden"]
[Date "2025.09.26"]
[Round "2.2"]
[White "Carlsson, Ludvig"]
[Black "Stahlberg, Adam"]
[Result "0-1"]
[TimeControl "3 min + 2 sec/move"]
[WhiteTitle "IM"]
[WhiteElo "2389"]
[BlackElo "1911"]

1. e4 {[%clk 00:03:02]} c6 {[%clk 00:03:03]} {[%emt 00:00:02]} 2. d4 {[%clk
00:03:03]} {[%emt 00:00:02]} d5 {[%clk 00:03:04]} {[%emt 00:00:01]} 3. exd5
{[%clk 00:03:03]} {[%emt 00:00:01]} cxd5 {[%clk 00:03:05]} {[%emt 00:00:02]} 4.
Bd3 {[%clk 00:03:04]} Nc6 {[%clk 00:03:05]} {[%emt 00:00:01]} 5. c3 {[%clk
00:03:05]} Nf6 {[%clk 00:03:06]} {[%emt 00:00:02]} 6. Nf3 {[%clk 00:03:04]}
{[%emt 00:00:02]} Bg4 {[%clk 00:03:06]} {[%emt 00:00:02]} 7. Bf4 {[%clk
00:03:02]} {[%emt 00:00:04]} Qb6 {[%clk 00:02:45]} {[%emt 00:00:23]} 8. b4
{[%clk 00:02:42]} {[%emt 00:00:22]} e6 {[%clk 00:02:44]} {[%emt 00:00:03]} 9.
O-O {[%clk 00:02:41]} {[%emt 00:00:03]} Be7 {[%clk 00:02:41]} {[%emt 00:00:05]}
10. Nbd2 {[%clk 00:02:41]} {[%emt 00:00:02]} O-O {[%clk 00:02:41]} {[%emt
00:00:02]} 11. a4 {[%clk 00:02:39]} {[%emt 00:00:05]} Rac8 {[%clk 00:02:40]}
{[%emt 00:00:03]} 12. a5 {[%clk 00:02:38]} {[%emt 00:00:02]} Qd8 {[%clk
00:02:40]} {[%emt 00:00:02]} 13. Qb3 {[%clk 00:02:36]} {[%emt 00:00:04]} Bh5
{[%clk 00:01:56]} {[%emt 00:00:46]} 14. Rfe1 {[%clk 00:02:33]} {[%emt
00:00:05]} Bg6 {[%clk 00:01:57]} {[%emt 00:00:02]} 15. Bxg6 {[%clk 00:02:15]}
{[%emt 00:00:19]} hxg6 {[%clk 00:01:57]} {[%emt 00:00:02]} 16. g3 {[%clk
00:02:15]} {[%emt 00:00:02]} Nd7 {[%clk 00:01:43]} {[%emt 00:00:16]} 17. h4
{[%clk 00:02:07]} {[%emt 00:00:10]} Re8 {[%clk 00:01:29]} {[%emt 00:00:16]} 18.
Kg2 {[%clk 00:02:07]} Bf6 {[%clk 00:01:29]} {[%emt 00:00:02]} 19. Re3 {[%clk
00:01:57]} {[%emt 00:00:13]} Ne7 {[%clk 00:01:30]} {[%emt 00:00:01]} 20. g4
{[%clk 00:01:54]} {[%emt 00:00:05]} Nc6 {[%clk 00:01:19]} {[%emt 00:00:13]} 21.
Bg3 {[%clk 00:01:52]} {[%emt 00:00:04]} g5 {[%clk 00:01:09]} {[%emt 00:00:13]}
22. h5 {[%clk 00:01:47]} {[%emt 00:00:07]} Ne7 {[%clk 00:00:59]} {[%emt
00:00:12]} 23. Rae1 {[%clk 00:01:45]} {[%emt 00:00:03]} g6 {[%clk 00:00:54]}
{[%emt 00:00:07]} 24. Nh2 {[%clk 00:01:33]} {[%emt 00:00:14]} gxh5 {[%clk
00:00:55]} {[%emt 00:00:02]} 25. gxh5 {[%clk 00:01:33]} {[%emt 00:00:01]} Nf5
{[%clk 00:00:56]} {[%emt 00:00:02]} 26. Rf3 {[%clk 00:01:34]} {[%emt 00:00:01]}
Bg7 {[%clk 00:00:50]} {[%emt 00:00:08]} 27. Ng4 {[%clk 00:01:34]} {[%emt
00:00:01]} Nf6 {[%clk 00:00:39]} {[%emt 00:00:13]} 28. Nxf6+ {[%clk 00:01:21]}
{[%emt 00:00:14]} Bxf6 {[%clk 00:00:40]} {[%emt 00:00:02]} 29. Nf1 {[%clk
00:00:57]} {[%emt 00:00:26]} g4 {[%clk 00:00:41]} {[%emt 00:00:02]} 30. Rf4
{[%clk 00:00:57]} Nh6 {[%clk 00:00:27]} {[%emt 00:00:16]} 31. Ne3 {[%clk
00:00:38]} {[%emt 00:00:21]} Bg5 {[%clk 00:00:28]} {[%emt 00:00:01]} 32. Rxg4
{[%clk 00:00:38]} {[%emt 00:00:03]} Nxg4 {[%clk 00:00:28]} {[%emt 00:00:02]} 33.
Nxg4 {[%clk 00:00:38]} {[%emt 00:00:01]} Bd2 {[%clk 00:00:20]} {[%emt
00:00:09]} 34. Re3 {[%clk 00:00:12]} {[%emt 00:00:29]} Bxe3 {[%clk 00:00:21]}
{[%emt 00:00:02]} 35. fxe3 {[%clk 00:00:12]} {[%emt 00:00:02]} f5 {[%clk
00:00:19]} {[%emt 00:00:04]} 36. Ne5 {[%clk 00:00:11]} {[%emt 00:00:02]} Qg5
{[%clk 00:00:17]} {[%emt 00:00:04]} 37. Kf2 {[%clk 00:00:06]} {[%emt 00:00:07]}
Qxh5 {[%clk 00:00:13]} {[%emt 00:00:07]} 38. b5 {[%clk 00:00:07]} Re7 {[%clk
00:00:12]} {[%emt 00:00:03]} 39. b6 {[%clk 00:00:08]} {[%emt 00:00:02]} a6
{[%clk 00:00:12]} {[%emt 00:00:02]} 40. Qb2 {[%clk 00:00:06]} {[%emt 00:00:02]}
Rg7 {[%clk 00:00:13]} {[%emt 00:00:02]} 41. Kg2 {[%clk 00:00:06]} {[%emt
00:00:03]} Rg5 {[%clk 00:00:11]} {[%emt 00:00:04]} 42. Nd3 {[%clk 00:00:05]}
{[%emt 00:00:02]} Rf8 {[%clk 00:00:12]} {[%emt 00:00:01]} 43. Nf4 {[%clk
00:00:06]} {[%emt 00:00:02]} Qh6 {[%clk 00:00:12]} 44. Qf2 {[%clk 00:00:06]}
{[%emt 00:00:02]} Rf7 {[%clk 00:00:14]} 45. Kf3 {[%clk 00:00:06]} {[%emt
00:00:02]} Rfg7 {[%clk 00:00:14]} {[%emt 00:00:02]} 46. Bh4 {[%clk 00:00:07]}
Rg4 {[%clk 00:00:14]} {[%emt 00:00:02]} 47. Bd8 {[%clk 00:00:07]} {[%emt
00:00:02]} Rxf4+ {[%clk 00:00:13]} {[%emt 00:00:04]} 48. exf4 {[%clk 00:00:07]}
{[%emt 00:00:01]} Qh3+ {[%clk 00:00:14]} 49. Ke2 {[%clk 00:00:08]} {[%emt
00:00:01]} Qxc3 {[%clk 00:00:14]} {[%emt 00:00:02]} 50. Qh4 {[%clk 00:00:07]}
{[%emt 00:00:03]} Qc2+ {[%clk 00:00:15]} {[%emt 00:00:02]} 51. Kf3 {[%clk
00:00:07]} Qd3+ {[%clk 00:00:16]} {[%emt 00:00:02]} 52. Kf2 {[%clk 00:00:08]}
Qd2+ {[%clk 00:00:16]} {[%emt 00:00:03]} 53. Kf1 {[%clk 00:00:09]} Qd1+ {[%clk
00:00:15]} {[%emt 00:00:02]} 54. Kf2 {[%clk 00:00:10]} {[%emt 00:00:01]} Qxd4+
{[%clk 00:00:11]} {[%emt 00:00:06]} 55. Kf1 {[%clk 00:00:08]} {[%emt 00:00:03]}
Rg1+ {[%clk 00:00:09]} {[%emt 00:00:04]} 56. Ke2 {[%clk 00:00:09]} {[%emt
00:00:02]} Qd1+ {[%clk 00:00:09]} {[%emt 00:00:02]} 57. Ke3 {[%clk 00:00:06]}
{[%emt 00:00:04]} Qe1+ {[%clk 00:00:09]} 58. Qxe1 {[%clk 00:00:07]} {[%emt
00:00:02]} Rxe1+ {[%clk 00:00:11]} 59. Kd4 {[%clk 00:00:08]} Re4+ {[%clk
00:00:11]} {[%emt 00:00:01]} 60. Kc5 {[%clk 00:00:10]} d4 {[%clk 00:00:11]}
{[%emt 00:00:03]} 61. Bf6 {[%clk 00:00:07]} {[%emt 00:00:04]} d3 {[%clk
00:00:12]} {[%emt 00:00:02]} 62. Bc3 {[%clk 00:00:08]} Re2 {[%clk 00:00:12]}
{[%emt 00:00:02]} 63. Kd6 {[%clk 00:00:09]} Rc2 {[%clk 00:00:13]} {[%emt
00:00:02]} 64. Be1 {[%clk 00:00:08]} {[%emt 00:00:02]} d2 {[%clk 00:00:14]}
{[%emt 00:00:02]} 65. Bxd2 {[%clk 00:00:09]} Rxd2+ {[%clk 00:00:15]} {[%emt
00:00:01]} 66. Kc7 {[%clk 00:00:10]} Ra2 {[%clk 00:00:16]} 67. Kxb7 {[%clk
00:00:11]} {[%emt 00:00:01]} Rxa5 {[%clk 00:00:17]} {[%emt 00:00:02]} 68. Kc6
{[%clk 00:00:12]} Kf7 {[%clk 00:00:16]} {[%emt 00:00:02]} 69. b7 {[%clk
00:00:13]} {[%emt 00:00:02]} Rb5 {[%clk 00:00:18]} 70. Kc7 {[%clk 00:00:14]}
{[%emt 00:00:01]} Kf6 {[%clk 00:00:18]} {[%emt 00:00:01]} 0-1

[Event "Blixt-SM 2025"]
[Site "Norrköping, Sweden"]
[Date "2025.09.26"]
[Round "3.8"]
[White "Stahlberg, Adam"]
[Black "Lind, Jan-Olov"]
[Result "1-0"]
[TimeControl "3 min + 2 sec/move"]
[WhiteElo "1911"]
[BlackElo "2057"]

1. d4 {[%clk 00:03:03]} {[%emt 00:00:01]} Nf6 {[%clk 00:03:01]} {[%emt
00:00:03]} 2. c4 {[%clk 00:03:03]} {[%emt 00:00:02]} g6 {[%clk 00:03:02]} 3.
Nc3 {[%clk 00:03:04]} {[%emt 00:00:01]} Bg7 {[%clk 00:03:03]} 4. e4 {[%clk
00:03:05]} {[%emt 00:00:02]} d6 {[%clk 00:03:05]} 5. Be2 {[%clk 00:03:03]}
{[%emt 00:00:04]} O-O {[%clk 00:03:05]} {[%emt 00:00:02]} 6. Be3 {[%clk
00:03:04]} c6 {[%clk 00:02:59]} {[%emt 00:00:08]} 7. h4 {[%clk 00:03:03]}
{[%emt 00:00:03]} a6 {[%clk 00:02:57]} {[%emt 00:00:04]} 8. h5 {[%clk
00:02:57]} {[%emt 00:00:08]} b5 {[%clk 00:02:57]} {[%emt 00:00:02]} 9. hxg6
{[%clk 00:02:50]} {[%emt 00:00:09]} fxg6 {[%clk 00:02:56]} {[%emt 00:00:02]} 10.
a3 {[%clk 00:02:33]} {[%emt 00:00:19]} bxc4 {[%clk 00:02:25]} {[%emt 00:00:34]}
11. Bxc4+ {[%clk 00:02:33]} {[%emt 00:00:02]} d5 {[%clk 00:02:25]} {[%emt
00:00:02]} 12. Ba2 {[%clk 00:02:22]} {[%emt 00:00:13]} e6 {[%clk 00:02:02]}
{[%emt 00:00:24]} 13. e5 {[%clk 00:02:21]} {[%emt 00:00:03]} Nfd7 {[%clk
00:01:57]} {[%emt 00:00:08]} 14. Nf3 {[%clk 00:02:14]} {[%emt 00:00:09]} Qe7
{[%clk 00:01:35]} {[%emt 00:00:23]} 15. Qd2 {[%clk 00:02:14]} {[%emt 00:00:02]}
c5 {[%clk 00:01:30]} {[%emt 00:00:08]} 16. Nxd5 {[%clk 00:01:56]} {[%emt
00:00:20]} exd5 {[%clk 00:01:11]} {[%emt 00:00:21]} 17. Bxd5+ {[%clk 00:01:56]}
{[%emt 00:00:02]} Kh8 {[%clk 00:01:12]} {[%emt 00:00:01]} 18. Bxa8 {[%clk
00:01:38]} {[%emt 00:00:20]} cxd4 {[%clk 00:01:12]} {[%emt 00:00:02]} 19. Bxd4
{[%clk 00:01:20]} {[%emt 00:00:20]} Nc5 {[%clk 00:00:48]} {[%emt 00:00:26]} 20.
O-O {[%clk 00:00:43]} {[%emt 00:00:39]} Nb3 {[%clk 00:00:43]} {[%emt 00:00:07]}
21. Qe3 {[%clk 00:00:41]} {[%emt 00:00:05]} Nxa1 {[%clk 00:00:40]} {[%emt
00:00:04]} 22. Rxa1 {[%clk 00:00:41]} {[%emt 00:00:02]} Re8 {[%clk 00:00:26]}
{[%emt 00:00:15]} 23. Re1 {[%clk 00:00:41]} {[%emt 00:00:03]} Bb7 {[%clk
00:00:27]} {[%emt 00:00:01]} 24. Bxb7 {[%clk 00:00:42]} {[%emt 00:00:02]} Qxb7
{[%clk 00:00:28]} 25. Qe4 {[%clk 00:00:39]} {[%emt 00:00:04]} Qxe4 {[%clk
00:00:14]} {[%emt 00:00:17]} 26. Rxe4 {[%clk 00:00:40]} Nc6 {[%clk 00:00:15]}
27. Bc3 {[%clk 00:00:39]} {[%emt 00:00:03]} Kg8 {[%clk 00:00:16]} {[%emt
00:00:01]} 28. e6 {[%clk 00:00:37]} {[%emt 00:00:05]} Bxc3 {[%clk 00:00:14]}
{[%emt 00:00:04]} 29. bxc3 {[%clk 00:00:38]} Nd8 {[%clk 00:00:14]} 30. Nd4
{[%clk 00:00:36]} {[%emt 00:00:04]} Kg7 {[%clk 00:00:15]} {[%emt 00:00:01]} 31.
e7 {[%clk 00:00:27]} {[%emt 00:00:11]} Nb7 {[%clk 00:00:15]} {[%emt 00:00:02]}
32. Re6 {[%clk 00:00:22]} {[%emt 00:00:07]} Nc5 {[%clk 00:00:15]} {[%emt
00:00:02]} 33. Rc6 {[%clk 00:00:22]} {[%emt 00:00:02]} Nd3 {[%clk 00:00:12]}
{[%emt 00:00:05]} 34. Rc7 {[%clk 00:00:23]} {[%emt 00:00:02]} Kf7 {[%clk
00:00:13]} 35. Nc6 {[%clk 00:00:23]} {[%emt 00:00:01]} g5 {[%clk 00:00:10]}
{[%emt 00:00:06]} 36. Ra7 {[%clk 00:00:24]} Rc8 {[%clk 00:00:10]} {[%emt
00:00:02]} 37. Nd8+ {[%clk 00:00:20]} {[%emt 00:00:06]} Ke8 {[%clk 00:00:09]}
{[%emt 00:00:03]} 38. Ne6 {[%clk 00:00:20]} {[%emt 00:00:02]} Ne5 {[%clk
00:00:05]} {[%emt 00:00:03]} 39. Ng7+ {[%clk 00:00:19]} {[%emt 00:00:06]} Kf7
{[%clk 00:00:04]} {[%emt 00:00:03]} 40. e8=Q+ {[%clk 00:00:18]} {[%emt
00:00:03]} 1-0

[Event "Blixt-SM 2025"]
[Site "Norrköping, Sweden"]
[Date "2025.09.26"]
[Round "5.4"]
[White "Bjorklund, Thomas"]
[Black "Carlsson, Ludvig"]
[Result "0-1"]
[TimeControl "3 min + 2 sec/move"]
[BlackTitle "IM"]
[WhiteElo "2103"]
[BlackElo "2389"]

1. e4 {[%clk 00:03:02]} Nc6 {[%clk 00:03:04]} {[%emt 00:00:01]} 2. c3 {[%clk
00:03:03]} {[%emt 00:00:02]} Nf6 {[%clk 00:03:03]} {[%emt 00:00:02]} 3. d3
{[%clk 00:03:02]} {[%emt 00:00:02]} d5 {[%clk 00:03:00]} {[%emt 00:00:05]} 4.
exd5 {[%clk 00:03:01]} {[%emt 00:00:04]} Qxd5 {[%clk 00:03:00]} {[%emt
00:00:02]} 5. Nf3 {[%clk 00:03:01]} {[%emt 00:00:03]} e5 {[%clk 00:02:52]}
{[%emt 00:00:10]} 6. Be2 {[%clk 00:03:01]} {[%emt 00:00:02]} Bd6 {[%clk
00:02:47]} {[%emt 00:00:06]} 7. Qb3 {[%clk 00:02:43]} {[%emt 00:00:20]} b6
{[%clk 00:02:30]} {[%emt 00:00:20]} 8. Qxd5 {[%clk 00:02:42]} {[%emt 00:00:03]}
Nxd5 {[%clk 00:02:29]} {[%emt 00:00:02]} 9. O-O {[%clk 00:02:33]} {[%emt
00:00:10]} Bb7 {[%clk 00:02:29]} {[%emt 00:00:02]} 10. Rd1 {[%clk 00:02:30]}
{[%emt 00:00:05]} O-O-O {[%clk 00:02:28]} {[%emt 00:00:03]} 11. Nbd2 {[%clk
00:02:30]} {[%emt 00:00:02]} Nf4 {[%clk 00:02:29]} 12. Bf1 {[%clk 00:02:28]}
{[%emt 00:00:04]} h6 {[%clk 00:02:14]} {[%emt 00:00:16]} 13. Ne4 {[%clk
00:02:25]} {[%emt 00:00:05]} Ne6 {[%clk 00:02:12]} {[%emt 00:00:05]} 14. Be3
{[%clk 00:02:07]} {[%emt 00:00:20]} Be7 {[%clk 00:02:12]} {[%emt 00:00:02]} 15.
Ng3 {[%clk 00:01:28]} {[%emt 00:00:42]} g6 {[%clk 00:02:10]} {[%emt 00:00:03]}
16. d4 {[%clk 00:01:22]} {[%emt 00:00:08]} exd4 {[%clk 00:02:10]} {[%emt
00:00:03]} 17. Nxd4 {[%clk 00:01:21]} {[%emt 00:00:03]} Nexd4 {[%clk 00:02:09]}
{[%emt 00:00:03]} 18. cxd4 {[%clk 00:01:11]} {[%emt 00:00:12]} Bf6 {[%clk
00:02:02]} {[%emt 00:00:08]} 19. d5 {[%clk 00:00:56]} {[%emt 00:00:17]} Nb4
{[%clk 00:01:59]} {[%emt 00:00:05]} 20. Ne4 {[%clk 00:00:54]} {[%emt 00:00:04]}
Bxb2 {[%clk 00:01:40]} {[%emt 00:00:22]} 21. Rab1 {[%clk 00:00:55]} Nxd5 {[%clk
00:01:39]} {[%emt 00:00:02]} 22. Rxb2 {[%clk 00:00:50]} {[%emt 00:00:08]} Nxe3
{[%clk 00:01:39]} {[%emt 00:00:02]} 23. Rxd8+ {[%clk 00:00:47]} {[%emt
00:00:05]} Rxd8 {[%clk 00:01:39]} {[%emt 00:00:01]} 24. fxe3 {[%clk 00:00:48]}
{[%emt 00:00:02]} Bxe4 {[%clk 00:01:40]} {[%emt 00:00:02]} 25. Kf2 {[%clk
00:00:46]} {[%emt 00:00:04]} c5 {[%clk 00:01:39]} {[%emt 00:00:03]} 26. Bc4
{[%clk 00:00:46]} {[%emt 00:00:02]} f6 {[%clk 00:01:38]} {[%emt 00:00:03]} 27.
h3 {[%clk 00:00:46]} {[%emt 00:00:02]} Kc7 {[%clk 00:01:39]} {[%emt 00:00:02]}
28. Kg3 {[%clk 00:00:46]} {[%emt 00:00:02]} g5 {[%clk 00:01:38]} {[%emt
00:00:03]} 29. Kf2 {[%clk 00:00:47]} {[%emt 00:00:02]} Rd1 {[%clk 00:01:34]}
{[%emt 00:00:05]} 30. Be2 {[%clk 00:00:46]} {[%emt 00:00:03]} Rd5 {[%clk
00:01:32]} {[%emt 00:00:03]} 31. g4 {[%clk 00:00:46]} {[%emt 00:00:03]} f5
{[%clk 00:01:29]} {[%emt 00:00:06]} 32. Bc4 {[%clk 00:00:46]} {[%emt 00:00:03]}
Rd1 {[%clk 00:01:25]} {[%emt 00:00:05]} 33. Be2 {[%clk 00:00:47]} Rc1 {[%clk
00:01:23]} {[%emt 00:00:04]} 34. Rd2 {[%clk 00:00:43]} {[%emt 00:00:06]} Rc2
{[%clk 00:01:23]} {[%emt 00:00:02]} 35. Rxc2 {[%clk 00:00:39]} {[%emt
00:00:06]} Bxc2 {[%clk 00:01:24]} {[%emt 00:00:02]} 36. gxf5 {[%clk 00:00:40]}
Bxf5 {[%clk 00:01:24]} {[%emt 00:00:02]} 37. Kg3 {[%clk 00:00:41]} Kd6 {[%clk
00:01:25]} {[%emt 00:00:01]} 38. h4 {[%clk 00:00:41]} Ke5 {[%clk 00:01:26]}
{[%emt 00:00:01]} 39. hxg5 {[%clk 00:00:42]} {[%emt 00:00:02]} hxg5 {[%clk
00:01:27]} 40. Kf2 {[%clk 00:00:42]} {[%emt 00:00:02]} Bd7 {[%clk 00:01:26]}
{[%emt 00:00:03]} 41. Bf3 {[%clk 00:00:41]} {[%emt 00:00:04]} b5 {[%clk
00:01:27]} {[%emt 00:00:02]} 42. Ke2 {[%clk 00:00:42]} b4 {[%clk 00:01:27]}
{[%emt 00:00:01]} 43. Kd2 {[%clk 00:00:43]} a5 {[%clk 00:01:28]} 44. Be2 {[%clk
00:00:44]} Be6 {[%clk 00:01:29]} {[%emt 00:00:01]} 45. Bc4 {[%clk 00:00:41]}
{[%emt 00:00:05]} Bxc4 {[%clk 00:01:29]} {[%emt 00:00:02]} 46. e4 {[%clk
00:03:02]} 0-1

[Event "Blixt-SM 2025"]
[Site "Norrköping, Sweden"]
[Date "2025.09.26"]
[Round "6.10"]
[White "Iwraeus, Lowe"]
[Black "Grahn, Vidar"]
[Result "1/2-1/2"]
[TimeControl "3 min + 2 sec/move"]
[BlackTitle "FM"]
[WhiteElo "2060"]
[BlackElo "2236"]

1. d4 {[%clk 00:03:02]} {[%emt 00:00:01]} d5 {[%clk 00:03:04]} 2. Nf3 {[%clk
00:03:03]} Nf6 {[%clk 00:03:05]} 3. g3 {[%clk 00:03:04]} {[%emt 00:00:01]} c5
{[%clk 00:03:06]} 4. c3 {[%clk 00:03:05]} {[%emt 00:00:02]} Nc6 {[%clk
00:03:06]} {[%emt 00:00:02]} 5. Bg2 {[%clk 00:03:06]} cxd4 {[%clk 00:03:07]}
{[%emt 00:00:02]} 6. cxd4 {[%clk 00:03:06]} {[%emt 00:00:01]} Bf5 {[%clk
00:03:08]} 7. a3 {[%emt 00:00:05]} e6 {[%clk 00:03:09]} {[%emt 00:00:01]} 8. b4
{[%clk 00:03:01]} {[%emt 00:00:04]} a6 {[%clk 00:03:09]} {[%emt 00:00:01]} 9.
O-O {[%clk 00:03:01]} {[%emt 00:00:02]} h6 {[%clk 00:03:10]} {[%emt 00:00:01]}
10. Nbd2 {[%clk 00:02:57]} {[%emt 00:00:05]} Be7 {[%clk 00:03:11]} {[%emt
00:00:02]} 11. Bb2 {[%clk 00:02:58]} {[%emt 00:00:01]} O-O {[%clk 00:03:11]}
{[%emt 00:00:02]} 12. Rc1 {[%clk 00:02:59]} {[%emt 00:00:01]} Rc8 {[%clk
00:02:52]} {[%emt 00:00:21]} 13. Nb3 {[%clk 00:02:58]} {[%emt 00:00:02]} b6
{[%clk 00:02:51]} {[%emt 00:00:04]} 14. Nbd2 {[%clk 00:02:54]} {[%emt
00:00:06]} Qd7 {[%clk 00:02:48]} {[%emt 00:00:04]} 15. Qb3 {[%clk 00:02:54]}
{[%emt 00:00:02]} Bh7 {[%clk 00:02:46]} {[%emt 00:00:05]} 16. Rfd1 {[%clk
00:02:51]} {[%emt 00:00:04]} Rc7 {[%clk 00:02:43]} {[%emt 00:00:06]} 17. Ne5
{[%clk 00:02:47]} {[%emt 00:00:06]} Nxe5 {[%clk 00:02:37]} {[%emt 00:00:07]} 18.
dxe5 {[%clk 00:02:48]} {[%emt 00:00:01]} Ne8 {[%clk 00:02:34]} {[%emt
00:00:05]} 19. Rxc7 {[%clk 00:02:44]} {[%emt 00:00:06]} Nxc7 {[%clk 00:02:35]}
20. Nf3 {[%clk 00:02:39]} {[%emt 00:00:07]} Rc8 {[%clk 00:02:35]} {[%emt
00:00:02]} 21. Rc1 {[%clk 00:02:39]} {[%emt 00:00:03]} Nb5 {[%clk 00:02:28]}
{[%emt 00:00:09]} 22. Qd1 {[%clk 00:02:26]} {[%emt 00:00:14]} Rc6 {[%clk
00:02:18]} {[%emt 00:00:12]} 23. Nd4 {[%clk 00:02:22]} {[%emt 00:00:07]} Nxd4
{[%clk 00:02:19]} {[%emt 00:00:01]} 24. Bxd4 {[%clk 00:02:22]} {[%emt
00:00:02]} Qc7 {[%clk 00:02:17]} {[%emt 00:00:03]} 25. Rxc6 Qxc6 {[%clk
00:02:18]} 26. e3 {[%clk 00:02:13]} {[%emt 00:00:11]} a5 {[%clk 00:02:18]}
{[%emt 00:00:01]} 27. Qd2 {[%clk 00:01:59]} {[%emt 00:00:16]} axb4 {[%clk
00:02:15]} {[%emt 00:00:06]} 28. axb4 {[%clk 00:02:00]} Qc4 {[%clk 00:02:07]}
{[%emt 00:00:08]} 29. Bxb6 {[%clk 00:01:38]} {[%emt 00:00:25]} Bxb4 {[%clk
00:02:07]} {[%emt 00:00:02]} 30. Qd1 {[%clk 00:01:32]} {[%emt 00:00:08]} Bc2
{[%clk 00:02:05]} {[%emt 00:00:04]} 31. Qc1 {[%clk 00:01:21]} {[%emt 00:00:14]}
Qb3 {[%clk 00:01:50]} {[%emt 00:00:16]} 32. Bd4 {[%clk 00:01:18]} {[%emt
00:00:04]} Ba3 {[%clk 00:01:44]} {[%emt 00:00:09]} 33. Qe1 {[%clk 00:01:17]}
{[%emt 00:00:03]} Bb4 {[%clk 00:01:42]} {[%emt 00:00:05]} 34. Qc1 {[%clk
00:01:18]} Bd3 {[%clk 00:01:39]} {[%emt 00:00:04]} 35. Bf3 {[%clk 00:01:14]}
{[%emt 00:00:06]} Ba3 {[%clk 00:01:36]} {[%emt 00:00:06]} 36. Bd1 {[%clk
00:01:07]} {[%emt 00:00:09]} Qb4 {[%clk 00:01:09]} {[%emt 00:00:27]} 37. Qc3
{[%clk 00:01:04]} {[%emt 00:00:07]} Qb1 {[%clk 00:01:08]} 38. Qb3 {[%clk
00:00:53]} {[%emt 00:00:15]} Qxb3 {[%clk 00:00:36]} {[%emt 00:00:34]} 39. Bxb3
{[%emt 00:00:01]} g5 {[%clk 00:00:37]} 40. Bd1 {[%clk 00:00:47]} {[%emt
00:00:09]} Kg7 {[%clk 00:00:36]} {[%emt 00:00:03]} 41. Kg2 {[%clk 00:00:48]}
{[%emt 00:00:01]} Kg6 {[%clk 00:00:37]} {[%emt 00:00:02]} 42. g4 {[%clk
00:00:44]} {[%emt 00:00:06]} Bb4 {[%clk 00:00:35]} {[%emt 00:00:04]} 43. h3
{[%clk 00:00:43]} {[%emt 00:00:02]} Ba5 {[%clk 00:00:34]} {[%emt 00:00:03]} 44.
Ba4 {[%clk 00:00:42]} {[%emt 00:00:03]} Kg7 {[%clk 00:00:22]} {[%emt 00:00:14]}
45. Bd1 {[%clk 00:00:42]} Kf8 {[%clk 00:00:22]} {[%emt 00:00:02]} 46. Ba4
{[%clk 00:00:40]} {[%emt 00:00:04]} Kg7 {[%clk 00:00:22]} {[%emt 00:00:02]} 47.
Bd1 {[%clk 00:00:41]} Bc7 {[%clk 00:00:21]} {[%emt 00:00:04]} 48. Ba4 {[%clk
00:00:42]} Kf8 {[%clk 00:00:19]} {[%emt 00:00:03]} 49. Bc5+ {[%clk 00:00:42]}
{[%emt 00:00:02]} Kg8 {[%clk 00:00:20]} {[%emt 00:00:02]} 50. Bd4 {[%clk
00:00:43]} Kg7 {[%clk 00:00:20]} {[%emt 00:00:01]} 51. Bd1 {[%clk 00:00:44]}
{[%emt 00:00:01]} Kg6 {[%clk 00:00:21]} {[%emt 00:00:02]} 52. Ba4 {[%clk
00:00:46]} h5 {[%clk 00:00:20]} {[%emt 00:00:02]} 53. Bd1 {[%clk 00:00:47]} h4
{[%clk 00:00:20]} {[%emt 00:00:03]} 54. Ba4 {[%clk 00:00:48]} Be4+ {[%clk
00:00:20]} {[%emt 00:00:01]} 55. f3 {[%clk 00:00:48]} {[%emt 00:00:02]} Bd3
{[%clk 00:00:21]} 56. Kf2 {[%clk 00:00:49]} Ba5 {[%clk 00:00:22]} {[%emt
00:00:01]} 57. Bd1 {[%clk 00:00:47]} {[%emt 00:00:04]} Bd2 {[%clk 00:00:22]}
{[%emt 00:00:02]} 58. Ba4 {[%clk 00:00:46]} {[%emt 00:00:03]} Kg7 {[%clk
00:00:20]} {[%emt 00:00:04]} 59. Bd1 {[%clk 00:00:46]} {[%emt 00:00:02]} Bb4
{[%clk 00:00:21]} {[%emt 00:00:02]} 60. Ba4 {[%clk 00:00:47]} {[%emt 00:00:01]}
Kf8 {[%clk 00:00:22]} 61. Bc6 {[%clk 00:00:45]} {[%emt 00:00:04]} Be7 {[%clk
00:00:18]} {[%emt 00:00:05]} 62. Ba4 {[%clk 00:00:46]} {[%emt 00:00:01]} Kg7
{[%clk 00:00:19]} {[%emt 00:00:01]} 63. Bd1 {[%clk 00:00:47]} {[%emt 00:00:02]}
f6 {[%clk 00:00:20]} {[%emt 00:00:01]} 64. exf6+ {[%clk 00:00:41]} Bxf6 {[%clk
00:00:21]} 65. Bxf6+ {[%clk 00:00:36]} {[%emt 00:00:07]} Kxf6 {[%clk 00:00:22]}
66. f4 {[%clk 00:00:38]} e5 {[%clk 00:00:15]} {[%emt 00:00:09]} 67. Bf3 {[%clk
00:00:31]} {[%emt 00:00:08]} exf4 {[%clk 00:00:06]} {[%emt 00:00:12]} 68. exf4
{[%clk 00:00:32]} {[%emt 00:00:01]} gxf4 {[%clk 00:00:06]} {[%emt 00:00:02]} 69.
Bxd5 {[%clk 00:00:33]} {[%emt 00:00:02]} Kg5 {[%clk 00:00:07]} 70. Bf3 {[%clk
00:00:32]} {[%emt 00:00:03]} Bc4 {[%clk 00:00:08]} 71. Be4 {[%clk 00:00:32]}
{[%emt 00:00:02]} 1/2-1/2